fUSD/lending_fUSD_20240204
["ID","MTS","AMOUNT","RATE_DAILY","PERIOD"]
[313274898,1707065447816,-500.0,0.00046575,31]
[313274899,1707065447825,-186.04858029,0.00046575,31]
[313274900,1707065447835,-500.0,0.00046575,31]
[313274901,1707065447845,-500.0,0.00046575,31]
[313274902,1707065447854,-500.0,0.00046575,31]
[313274903,1707065447864,-500.0,0.00046575,31]
[313274904,1707065447873,-500.0,0.00046575,31]
[313274905,1707065447884,-500.0,0.00046575,31]
[313274906,1707065447895,-500.0,0.00046575,31]
[313274907,1707065447904,-574.60164074,0.00046575,31]
[313274908,1707065447913,-521.84194172,0.00046575,31]
[313274909,1707065447923,-500.0,0.00046575,31]
[313274910,1707065447933,-557.26238838,0.00046575,31]
[313274911,1707065447942,-500.0,0.00046575,31]
[313274912,1707065447951,-500.0,0.00046575,31]
[313274913,1707065447960,-500.0,0.00046575,31]
[313274914,1707065447976,-399.60912446,0.00046575,31]
[313274915,1707065447985,-557.92088797,0.00046575,31]
[313274916,1707065447995,-500.0,0.00046575,31]
[313274917,1707065448004,-402.89939423,0.00046575,31]
[313274918,1707065448015,-500.0,0.00046575,31]
[313274919,1707065448024,-5000.0,0.00046575,40]
[313274920,1707065448033,-175.27233615,0.00046575,31]
[313274921,1707065448043,-500.0,0.00046575,31]
[313274922,1707065448054,-253.52116422,0.00046575,31]
[313274923,1707065448064,-259.79532937,0.00046575,31]
[313274924,1707065448074,-593.33511333,0.00046575,31]
[313274925,1707065448084,-500.0,0.00046575,31]
[313274926,1707065448094,-611.57123104,0.00046575,31]
[313274927,1707065448104,-317.10986073,0.00046575,31]
[313274928,1707065448114,-546.51049633,0.00046575,31]
[313274929,1707065448124,-500.0,0.00046575,31]
[313274930,1707065448133,-500.0,0.00046575,31]
[313274931,1707065448144,-573.85839693,0.00046575,31]
[313274932,1707065448153,-604.01,0.00046575,31]
[313274933,1707065448162,-500.0,0.00046575,31]
[313274934,1707065448173,-500.0,0.00046575,31]
[313274935,1707065448183,-432.18434822,0.00046575,31]
[313274936,1707065448193,-500.0,0.00046575,31]
[313274937,1707065448204,-500.0,0.00046575,31]
[313274938,1707065448214,-500.0,0.00046575,7]
[313274939,1707065448224,-620.45909848,0.00046575,31]
[313274940,1707065448233,-500.0,0.00046575,31]
[313274941,1707065448242,-500.0,0.00046575,31]
[313274942,1707065448251,-520.6852322,0.00046575,31]
[313274943,1707065448261,-500.0,0.00046575,31]
[313274944,1707065448270,-3332.64095983,0.00046575,14]
[313274945,1707065448281,-259.7775116,0.00046575,31]
[313274946,1707065448292,-500.0,0.00046575,31]
[313274947,1707065448301,-500.0,0.00046575,31]
[313274948,1707065448311,-292.70411797,0.00046575,31]
[313274949,1707065448322,-500.0,0.00046575,31]
[313274950,1707065448332,-531.43256469,0.00046575,31]
[313274951,1707065448342,-500.0,0.00046575,31]
[313274952,1707065448352,-536.06519236,0.00046575,31]
[313274953,1707065448361,-609.66,0.00046575,10]
[313274954,1707065448370,-511.44431261,0.00046575,31]
[313274955,1707065448381,-580.81930399,0.00046575,31]
[313274956,1707065448391,-500.0,0.00046575,31]
[313274957,1707065448401,-500.0,0.00046575,31]
[313274958,1707065448411,-500.0,0.00046575,31]
[313274959,1707065448421,-1025.64188683,0.00046575,120]
[313274960,1707065448431,-500.0,0.00046575,31]
[313274961,1707065448441,-1063.71,0.00046575,31]
[313274962,1707065448450,-500.0,0.00046575,2]
[313274963,1707065448460,-500.0,0.00046575,31]
[313274964,1707065448470,-500.0,0.00046575,31]
[313274965,1707065448479,-500.0,0.00046575,31]
[313274966,1707065448488,-500.0,0.00046575,31]
[313274967,1707065448497,-500.0,0.00046575,31]
[313274968,1707065448506,-165.55452855,0.00046575,31]
[313274969,1707065448515,-500.0,0.00046575,31]
[313274970,1707065448524,-500.0,0.00046575,31]
[313274971,1707065448533,-500.0,0.00046575,31]
[313274972,1707065448542,-308.56825711,0.00046575,31]
[313274973,1707065448551,-500.0,0.00046575,31]
[313274974,1707065448560,-1000.0,0.00046575,40]
[313274975,1707065448569,-500.0,0.00046575,31]
[313274976,1707065448578,-595.86854303,0.00046575,31]
[313274977,1707065448587,-547.81197624,0.00046575,31]
[313274978,1707065448596,-500.0,0.00046575,31]
[313274979,1707065448605,-500.0,0.00046575,31]
[313274980,1707065448614,-500.0,0.00046575,31]
[313274981,1707065448623,-500.0,0.00046575,31]
[313274982,1707065448633,-509.19996442,0.00046575,31]
[313274983,1707065448642,-605.26059011,0.00046575,31]
[313274984,1707065448651,-500.0,0.00046575,31]
[313274985,1707065448660,-500.0,0.00046575,31]
[313274986,1707065448670,-500.0,0.00046575,31]
[313274987,1707065448679,-500.0,0.00046575,31]
[313274988,1707065448687,-1076.84790584,0.00046575,30]
[313274989,1707065448696,-500.0,0.00046575,31]
[313274990,1707065448706,-500.0,0.00046575,31]
[313274991,1707065448715,-500.0,0.00046575,31]
[313274992,1707065448724,-500.0,0.00046575,31]
[313274993,1707065448733,-526.16613779,0.00046575,31]
[313274994,1707065448742,-182.52005538,0.00046575,31]
[313274995,1707065448751,-500.0,0.00046575,31]
[313274996,1707065448760,-1138.94,0.00046575,31]
[313274997,1707065448769,-500.0,0.00046575,31]
[313274998,1707065448778,-500.0,0.00046575,31]
[313274999,1707065448787,-500.0,0.00046575,31]
[313275000,1707065448796,-500.0,0.00046575,31]
[313275001,1707065448806,-500.0,0.00046575,31]
[313275002,1707065448814,-512.07418932,0.00046575,31]
[313275003,1707065448823,-262.16338056,0.00046575,31]
[313275004,1707065448832,-500.0,0.00046575,31]
[313275005,1707065448842,-586.70314899,0.00046575,31]
[313275006,1707065448851,-453.6210133,0.00046575,7]
[313275007,1707065448860,-500.0,0.00046575,31]
[313275008,1707065448869,-591.74027316,0.00046575,31]
[313275009,1707065448878,-500.0,0.00046575,31]
[313275010,1707065448887,-500.0,0.00046575,31]
[313275011,1707065448897,-500.0,0.00046575,31]
[313275012,1707065448906,-500.0,0.00046575,31]
[313275013,1707065448915,-500.0,0.00046575,7]
[313275014,1707065448924,-500.0,0.00046575,31]
[313275015,1707065448934,-500.0,0.00046575,31]
[313275016,1707065448943,-182.87611891,0.00046575,31]
[313275017,1707065448952,-500.0,0.00046575,31]
[313275018,1707065448962,-500.0,0.00046575,31]
[313275019,1707065448975,-500.0,0.00046575,31]
[313275020,1707065448985,-835.5,0.00046575,30]
[313275021,1707065448994,-210.12772207,0.00046575,31]
[313275022,1707065449004,-551.1588703,0.00046575,31]
[313275023,1707065449014,-500.0,0.00046575,31]
[313275024,1707065449023,-500.00000001,0.00046575,30]
[313275025,1707065449033,-500.0,0.00046575,31]
[313275026,1707065449042,-500.0,0.00046575,31]
[313275027,1707065449053,-500.0,0.00046575,31]
[313275028,1707065449062,-500.0,0.00046575,31]
[313275029,1707065449071,-610.86036661,0.00046575,31]
[313275030,1707065449081,-500.0,0.00046575,31]
[313275031,1707065449091,-200.80203513,0.00046575,31]
[313275032,1707065449101,-500.0,0.00046575,31]
[313275033,1707065449110,-916.61,0.00046575,31]
[313275034,1707065449120,-500.0,0.00046575,31]
[313275035,1707065449130,-500.0,0.00046575,31]
[313275036,1707065449140,-254.62279332,0.00046575,31]
[313275037,1707065449150,-500.0,0.00046575,31]
[313275038,1707065449159,-4613.04,0.00046575,31]
[313275039,1707065449169,-500.0,0.00046575,31]
[313275040,1707065449178,-500.0,0.00046575,31]
[313275041,1707065449187,-500.0,0.00046575,31]
[313275042,1707065449196,-500.0,0.00046575,7]
[313275043,1707065449205,-500.0,0.00046575,31]
[313275044,1707065449214,-378.0449458,0.00046575,31]
[313275045,1707065449223,-500.0,0.00046575,31]
[313275046,1707065449232,-500.0,0.00046575,31]
[313275047,1707065449241,-500.0,0.00046575,31]
[313275048,1707065449251,-500.0,0.00046575,31]
[313275049,1707065449260,-262.32298483,0.00046575,31]
[313275050,1707065449269,-500.0,0.00046575,31]
[313275051,1707065449278,-500.0,0.00046575,31]
[313275052,1707065449287,-500.0,0.00046575,31]
[313275053,1707065449297,-500.0,0.00046575,31]
[313275054,1707065449306,-557.993596,0.00046575,31]
[313275055,1707065449315,-524.39616238,0.00046575,31]
[313275056,1707065449324,-500.0,0.00046575,31]
[313275057,1707065449334,-500.0,0.00046575,31]
[313275058,1707065449343,-500.0,0.00046575,31]
[313275059,1707065449352,-500.0,0.00046575,31]
[313275060,1707065449361,-500.0,0.00046575,31]
[313275061,1707065449370,-500.0,0.00046575,31]
[313275062,1707065449379,-500.0,0.00046575,31]
[313275063,1707065449503,-500.0,0.00046575,31]
[313275064,1707065449513,-187.5,0.00046575,120]
[313275065,1707065449523,-263.8962871,0.00046575,31]
[313275066,1707065449531,-500.0,0.00046575,31]
[313275067,1707065449540,-500.0,0.00046575,31]
[313275068,1707065449552,-500.0,0.00046575,31]
[313275069,1707065449561,-500.0,0.00046575,31]
[313275070,1707065449570,-500.0,0.00046575,31]
[313275071,1707065449582,-500.0,0.00046575,31]
[313275072,1707065449591,-500.0,0.00046575,31]
[313275073,1707065449601,-500.0,0.00046575,31]
[313275074,1707065449611,-500.0,0.00046575,31]
[313275075,1707065449621,-500.0,0.00046575,31]
[313275076,1707065449630,-2653.1346252,0.00046575,7]
[313275077,1707065449639,-500.0,0.00046575,31]
[313275078,1707065449648,-500.0,0.00046575,31]
[313275079,1707065449657,-500.0,0.00046575,31]
[313275080,1707065449667,-535.99427705,0.00046575,31]
[313275081,1707065449677,-528.46,0.00046575,31]
[313275082,1707065449686,-581.43254556,0.00046575,31]
[313275083,1707065449695,-309.24441016,0.00046575,31]
[313275084,1707065449704,-296.9217153,0.00046575,31]
[313275085,1707065449714,-583.30958536,0.00046575,31]
[313275086,1707065449723,-500.0,0.00046575,31]
[313275087,1707065449732,-413.30918513,0.00046575,31]
[313275088,1707065449741,-500.0,0.00046575,31]
[313275089,1707065449750,-500.0,0.00046575,31]
[313275090,1707065449759,-1002.17308316,0.00046575,30]
[313275091,1707065449769,-500.0,0.00046575,31]
[313275092,1707065449778,-500.0,0.00046575,31]
[313275093,1707065449787,-500.0,0.00046575,31]
[313275094,1707065449797,-202.03120429,0.00046575,31]
[313275095,1707065449806,-500.0,0.00046575,31]
[313275096,1707065449815,-500.0,0.00046575,31]
[313275097,1707065449825,-500.0,0.00046575,31]
[313275098,1707065449834,-202.0889482,0.00046575,31]
[313275099,1707065449843,-500.0,0.00046575,31]
[313275100,1707065449853,-500.0,0.00046575,31]
[313275101,1707065449862,-500.0,0.00046575,31]
[313275102,1707065449871,-500.0,0.00046575,31]
[313275103,1707065449881,-500.0,0.00046575,31]
[313275104,1707065449890,-174.64530455,0.00046575,31]
[313275105,1707065449900,-500.0,0.00046575,31]
[313275106,1707065449909,-500.0,0.00046575,31]
[313275107,1707065449919,-500.0,0.00046575,31]
[313275108,1707065449928,-500.0,0.00046575,31]
[313275109,1707065449939,-1923.26,0.00046575,31]
[313275110,1707065449948,-646.73876736,0.00046575,31]
[313275111,1707065449958,-580.29598781,0.00046575,31]
[313275112,1707065449972,-500.0,0.00046575,31]
[313275113,1707065449981,-1915.51,0.00046575,5]
[313275114,1707065449990,-500.0,0.00046575,31]
[313275115,1707065450000,-648.60354385,0.00046575,31]
[313275116,1707065450010,-500.0,0.00046575,31]
[313275117,1707065450020,-500.0,0.00046575,31]
[313275118,1707065450029,-500.0,0.00046575,31]
[313275119,1707065450039,-558.03382784,0.00046575,31]
[313275120,1707065450049,-500.0,0.00046575,31]
[313275121,1707065450059,-343.13320811,0.00046575,31]
[313275122,1707065450069,-500.0,0.00046575,31]
[313275123,1707065450078,-500.0,0.00046575,31]
[313275124,1707065450087,-500.0,0.00046575,31]
[313275125,1707065450097,-500.0,0.00046575,31]
[313275126,1707065450107,-500.0,0.00046575,31]
[313275127,1707065450117,-894.9,0.00046575,31]
[313275128,1707065450126,-500.0,0.00046575,31]
[313275129,1707065450135,-745.04,0.00046575,20]
[313275130,1707065450145,-500.0,0.00046575,31]
[313275131,1707065450155,-153.31679913,0.00046575,31]
[313275132,1707065450164,-334.18091301,0.00046575,31]
[313275133,1707065450173,-500.0,0.00046575,31]
[313275134,1707065450183,-500.0,0.00046575,31]
[313275135,1707065450192,-430.73688039,0.00046575,31]
[313275136,1707065450201,-500.0,0.00046575,31]
[313275137,1707065450211,-500.0,0.00046575,31]
[313275138,1707065450220,-166.52178711,0.00046575,31]
[313275139,1707065450229,-500.0,0.00046575,31]
[313275140,1707065450239,-500.0,0.00046575,31]
[313275141,1707065450248,-3104.19,0.00046575,31]
[313275142,1707065450258,-500.0,0.00046575,31]
[313275143,1707065450268,-500.0,0.00046575,31]
[313275144,1707065450277,-500.0,0.00046575,31]
[313275145,1707065450286,-500.0,0.00046575,31]
[313275146,1707065450296,-500.0,0.00046575,31]
[313275147,1707065450305,-505.55576868,0.00046575,31]
[313275148,1707065450315,-500.0,0.00046575,31]
[313275149,1707065450325,-500.0,0.00046575,31]
[313275150,1707065450334,-500.0,0.00046575,31]
[313275151,1707065450343,-500.0,0.00046575,31]
[313275152,1707065450353,-695.46,0.00046575,31]
[313275153,1707065450363,-500.0,0.00046575,31]
[313275154,1707065450372,-500.0,0.00046575,31]
[313275155,1707065450381,-500.0,0.00046575,31]
[313275156,1707065450390,-158.20187115,0.00046575,31]
[313275157,1707065450399,-500.0,0.00046575,31]
[313275158,1707065450409,-500.0,0.00046575,31]
[313275159,1707065450418,-258.40036997,0.00046575,31]
[313275160,1707065450427,-500.0,0.00046575,31]
[313275161,1707065450437,-500.0,0.00046575,31]
[313275162,1707065450446,-500.0,0.00046575,31]
[313275163,1707065450456,-500.0,0.00046575,31]
[313275164,1707065450465,-500.0,0.00046575,31]
[313275165,1707065450475,-500.0,0.00046575,31]
[313275166,1707065450484,-500.0,0.00046575,31]
[313275167,1707065450493,-333.59950732,0.00046575,31]
[313275168,1707065450502,-510.17383973,0.00046575,31]
[313275169,1707065450511,-661.08,0.00046575,31]
[313275170,1707065450521,-500.0,0.00046575,31]
[313275171,1707065450529,-500.0,0.00046575,31]
[313275172,1707065450539,-500.0,0.00046575,31]
[313275173,1707065450549,-500.0,0.00046575,31]
[313275174,1707065450559,-500.0,0.00046575,31]
[313275175,1707065450568,-500.0,0.00046575,31]
[313275176,1707065450577,-500.0,0.00046575,31]
[313275177,1707065450589,-500.0,0.00046575,31]
[313275178,1707065450599,-500.0,0.00046575,31]
[313275179,1707065450608,-500.0,0.00046575,31]
[313275180,1707065450617,-500.0,0.00046575,31]
[313275181,1707065450627,-500.0,0.00046575,31]
[313275182,1707065450636,-500.0,0.00046575,31]
[313275183,1707065450646,-500.0,0.00046575,31]
[313275184,1707065450655,-500.0,0.00046575,31]
[313275185,1707065450664,-500.0,0.00046575,31]
[313275186,1707065450673,-500.0,0.00046575,31]
[313275187,1707065450683,-500.0,0.00046575,31]
[313275188,1707065450692,-500.0,0.00046575,31]
[313275189,1707065450701,-500.0,0.00046575,31]
[313275190,1707065450711,-3813.48,0.00046575,31]
[313275191,1707065450720,-500.0,0.00046575,5]
[313275192,1707065450730,-500.0,0.00046575,31]
[313275193,1707065450738,-500.0,0.00046575,31]
[313275194,1707065450748,-500.0,0.00046575,31]
[313275195,1707065450757,-500.0,0.00046575,31]
[313275196,1707065450766,-500.0,0.00046575,31]
[313275197,1707065450776,-500.0,0.00046575,31]
[313275198,1707065450786,-1000.0,0.00046575,7]
[313275199,1707065450795,-500.0,0.00046575,31]
[313275200,1707065450805,-152.67725233,0.00046575,31]
[313275201,1707065450814,-500.0,0.00046575,31]
[313275202,1707065450823,-500.0,0.00046575,31]
[313275203,1707065450833,-500.0,0.00046575,31]
[313275204,1707065450842,-500.0,0.00046575,31]
[313275205,1707065450851,-500.0,0.00046575,31]
[313275206,1707065450860,-500.0,0.00046575,31]
[313275207,1707065450869,-459.95761043,0.00046575,31]
[313275208,1707065450879,-350.31322619,0.00046575,31]
[313275209,1707065450888,-1000.0,0.00046575,7]
[313275210,1707065450897,-500.0,0.00046575,31]
[313275211,1707065450907,-500.0,0.00046575,31]
[313275212,1707065450916,-500.0,0.00046575,31]
[313275213,1707065450925,-385.87443398,0.00046575,31]
[313275214,1707065450935,-500.0,0.00046575,31]
[313275215,1707065450945,-500.0,0.00046575,31]
[313275216,1707065450954,-500.0,0.00046575,31]
[313275217,1707065450963,-500.0,0.00046575,31]
[313275218,1707065450977,-153.80735562,0.00046575,31]
[313275219,1707065450987,-500.0,0.00046575,31]
[313275220,1707065450996,-500.0,0.00046575,31]
[313275221,1707065451006,-500.0,0.00046575,31]
[313275222,1707065451016,-309.2100538,0.00046575,31]
[313275223,1707065451026,-500.0,0.00046575,31]
[313275224,1707065451035,-500.0,0.00046575,31]
[313275225,1707065451045,-500.0,0.00046575,31]
[313275226,1707065451055,-268.26853114,0.00046575,31]
[313275227,1707065451065,-1147.88,0.00046575,31]
[313275228,1707065451074,-500.0,0.00046575,31]
[313275229,1707065451084,-643.33911916,0.00046575,31]
[313275230,1707065451094,-500.0,0.00046575,31]
[313275231,1707065451103,-601.35327427,0.00046575,31]
[313275232,1707065451112,-500.0,0.00046575,31]
[313275233,1707065451122,-500.0,0.00046575,31]
[313275234,1707065451131,-500.0,0.00046575,31]
[313275235,1707065451141,-500.0,0.00046575,31]
[313275236,1707065451150,-500.0,0.00046575,31]
[313275237,1707065451160,-500.0,0.00046575,31]
[313275238,1707065451171,-500.0,0.00046575,31]
[313275239,1707065451180,-193.24772221,0.00046575,31]
[313275240,1707065451189,-500.0,0.00046575,31]
[313275241,1707065451198,-2271.9,0.00046575,5]
[313275242,1707065451208,-500.0,0.00046575,31]
[313275243,1707065451218,-617.27860972,0.00046575,31]
[313275244,1707065451227,-500.0,0.00046575,31]
[313275245,1707065451236,-253.05159675,0.00046575,31]
[313275246,1707065451246,-500.0,0.00046575,31]
[313275247,1707065451255,-500.0,0.00046575,31]
[313275248,1707065451265,-500.0,0.00046575,31]
[313275249,1707065451274,-1000.0,0.00046575,30]
[313275250,1707065451284,-500.0,0.00046575,31]
[313275251,1707065451294,-538.05,0.00046575,31]
[313275252,1707065451303,-500.0,0.00046575,31]
[313275253,1707065451312,-500.0,0.00046575,31]
[313275254,1707065451322,-500.0,0.00046575,31]
[313275255,1707065451331,-500.0,0.00046575,31]
[313275256,1707065451340,-500.0,0.00046575,31]
[313275257,1707065451350,-500.0,0.00046575,31]
[313275258,1707065451359,-500.0,0.00046575,31]
[313275259,1707065451368,-500.0,0.00046575,31]
[313275260,1707065451378,-500.0,0.00046575,31]
[313275261,1707065451388,-500.0,0.00046575,31]
[313275262,1707065451397,-758.26,0.00046575,31]
[313275263,1707065451407,-500.0,0.00046575,31]
[313275264,1707065451416,-500.0,0.00046575,31]
[313275265,1707065451425,-500.0,0.00046575,31]
[313275266,1707065451434,-500.0,0.00046575,31]
[313275267,1707065451445,-500.0,0.00046575,31]
[313275268,1707065451454,-500.0,0.00046575,31]
[313275269,1707065451464,-464.54637506,0.00046575,31]
[313275270,1707065451474,-500.0,0.00046575,31]
[313275271,1707065451483,-258.03018414,0.00046575,31]
[313275272,1707065451492,-500.0,0.00046575,31]
[313275273,1707065451502,-500.0,0.00046575,31]
[313275274,1707065451512,-500.0,0.00046575,31]
[313275275,1707065451522,-500.0,0.00046575,31]
[313275276,1707065451531,-312.80953325,0.00046575,31]
[313275277,1707065451543,-500.0,0.00046575,31]
[313275278,1707065451554,-1135.14,0.00046575,31]
[313275279,1707065451564,-745.04,0.00046575,31]
[313275280,1707065451573,-500.0,0.00046575,31]
[313275281,1707065451584,-500.0,0.00046575,31]
[313275282,1707065451593,-563.45,0.00046575,31]
[313275283,1707065451603,-500.0,0.00046575,31]
[313275284,1707065451613,-500.0,0.00046575,31]
[313275285,1707065451622,-189.94310285,0.00046575,31]
[313275286,1707065451631,-252.33393108,0.00046575,31]
[313275287,1707065451641,-500.0,0.00046575,31]
[313275288,1707065451650,-500.0,0.00046575,31]
[313275289,1707065451659,-500.0,0.00046575,31]
[313275290,1707065451669,-500.0,0.00046575,31]
[313275291,1707065451679,-500.0,0.00046575,31]
[313275292,1707065451688,-500.0,0.00046575,31]
[313275293,1707065451698,-268.1135305,0.00046575,31]
[313275294,1707065451708,-500.0,0.00046575,31]
[313275295,1707065451717,-500.0,0.00046575,31]
[313275296,1707065451726,-500.0,0.00046575,31]
[313275297,1707065451736,-164.42529707,0.00046575,31]
[313275298,1707065451746,-500.0,0.00046575,31]
[313275299,1707065451755,-500.0,0.00046575,31]
[313275300,1707065451765,-410.55018577,0.00046575,31]
[313275301,1707065452020,-159.37624852,0.00039999,4]
[313275302,1707065452030,-89.44981423,0.00046575,31]
[313275303,1707065452040,-424.31841914,0.00046575,31]
[313275304,1707065452053,-75.68158086,0.00046575,31]
[313275305,1707065452064,-500.0,0.00046575,31]
[313275306,1707065452073,-500.0,0.00046575,31]
[313275307,1707065452083,-500.0,0.00046575,31]
[313275308,1707065452094,-156.72375148,0.00046575,31]
[313275309,1707065452104,-500.0,0.00046575,31]
[313275310,1707065452113,-500.0,0.00046575,31]
[313275311,1707065452122,-500.0,0.00046575,31]
[313275312,1707065452131,-500.0,0.00046575,31]
[313275313,1707065452141,-596.15379691,0.00046575,31]
[313275314,1707065452151,-500.0,0.00046575,31]
[313275315,1707065452161,-500.0,0.00046575,31]
[313275316,1707065452170,-574.52430915,0.00046575,31]
[313275317,1707065452179,-500.0,0.00046575,31]
[313275318,1707065452188,-500.0,0.00046575,31]
[313275319,1707065452198,-124.71664093,0.00046575,5]
[313275320,1707065452210,-1069.51230699,0.00046575,5]
[313275321,1707065452222,-634.61105208,0.00046575,5]
[313275322,1707065452232,-176.92,0.00046576,2]
[313275323,1707065452241,-1975.47095801,0.0004659,2]
[313275324,1707065452255,-1729.52904199,0.0004659,2]
[313275325,1707065452264,-525.61095801,0.0004659,2]
[313275326,1707065452276,-620.38904199,0.0004659,2]
[313275327,1707065452287,-2799.0,0.000466,2]
[313275328,1707065452298,-293.68009911,0.000466,2]
[313275329,1707065452308,-12000.0,0.000466,120]
[313275330,1707065452317,-12000.0,0.000466,120]
[313275331,1707065452326,-4167.92,0.000466,7]
[313275332,1707065452336,-6748.14102193,0.000466,2]
[313275333,1707065452348,-204.26966564,0.000466,2]
[313275334,1707065452357,-204.0,0.00046665,19]
[313275335,1707065452366,-308.19542391,0.000467,120]
[313275336,1707065452378,-9671.10263949,0.000467,120]
[313275337,1707065452392,-2020.7019366,0.000467,120]
[313275338,1707065452402,-12000.0,0.000467,120]
[313275339,1707065452412,-500.0,0.000467,14]
[313275340,1707065452421,-7255.04951941,0.0004679,40]
[313275341,1707065452434,-12000.0,0.000468,120]
[313275342,1707065452443,-12000.0,0.000468,120]
[313275343,1707065452454,-156.0,0.000468,30]
[313275344,1707065452465,-5000.0,0.00046849,45]
[313275345,1707065452475,-1000.0,0.00046849,45]
[313275346,1707065452485,-12000.0,0.000469,120]
[313275347,1707065452495,-12000.0,0.000469,120]
[313275348,1707065452506,-1208.0,0.0004692,30]
[313275349,1707065452515,-200.0,0.00046987,21]
[313275350,1707065452526,-200.0,0.00046987,16]
[313275351,1707065452537,-2027.82,0.00047,32]
[313275352,1707065452546,-126044.03726043,0.00047,30]
[313275353,1707065452557,-150.0,0.00047,2]
[313275354,1707065452566,-150.0,0.00047,2]
[313275355,1707065452576,-166.60561548,0.00047,4]
[313275356,1707065452586,-422.0136711,0.00047,30]
[313275357,1707065452596,-12000.0,0.00047,120]
[313275358,1707065452606,-12000.0,0.00047,120]
[313275359,1707065452617,-3788.13,0.00047,7]
[313275360,1707065452627,-6728.24261552,0.00047087,22]
[313275361,1707065452637,-100000.0,0.00047089,4]
[313275362,1707065452648,-150.0,0.00047096,2]
[313275363,1707065452657,-1009.0911,0.00047099,2]
[313275364,1707065452667,-100000.0,0.00047099,4]
[313275365,1707065452677,-12000.0,0.000471,120]
[313275366,1707065452687,-12000.0,0.000471,120]
[313275367,1707065452697,-8629.94,0.000471,7]
[313275368,1707065452707,-3000.0,0.000471,36]
[313275369,1707065452717,-308.6605,0.00047121,4]
[313275370,1707065452727,-242.78640506,0.00047121,4]
[313275371,1707065452737,-368.50580545,0.00047121,2]
[313275372,1707065452747,-916.10860606,0.00047121,4]
[313275373,1707065452760,-174.41982976,0.00047122,4]
[313275374,1707065452770,-501.81707647,0.00047123,31]
[313275375,1707065452782,-500.0,0.00047123,10]
[313275376,1707065452792,-500.0,0.00047123,31]
[313275377,1707065452802,-500.0,0.00047123,7]
[313275378,1707065452812,-500.0,0.00047123,31]
[313275379,1707065452824,-500.0,0.00047123,31]
[313275380,1707065452834,-500.0,0.00047123,31]
[313275381,1707065452845,-629.82837974,0.00047123,31]
[313275382,1707065452854,-637.66026096,0.00047123,31]
[313275383,1707065452865,-500.0,0.00047123,31]
[313275384,1707065452875,-262.23799802,0.00047123,31]
[313275385,1707065452884,-373.09622719,0.00047123,31]
[313275386,1707065452895,-500.0,0.00047123,31]
[313275387,1707065452904,-557.63652515,0.00047123,31]
[313275388,1707065452914,-225.69287004,0.00047123,31]
[313275389,1707065452924,-500.0,0.00047123,31]
[313275390,1707065452934,-187.37472879,0.00047123,31]
[313275391,1707065452944,-547.92407733,0.00047123,31]
[313275392,1707065452953,-301.49404283,0.00047123,31]
[313275393,1707065452964,-500.0,0.00047123,31]
[313275394,1707065452977,-500.0,0.00047123,31]
[313275395,1707065452986,-500.0,0.00047123,31]
[313275396,1707065452996,-567.82,0.00047123,31]
[313275397,1707065453006,-500.0,0.00047123,31]